[Event "Late-Titled-Tuesday-Blitz-November-28-2023"]
[Site "Chess.com"]
[Date "2023.11.28"]
[Round "2"]
[White "Matthew_Clarke"]
[Black "szachmistrz2500"]
[Result "1-0"]
[WhiteElo "2262"]
[BlackElo "2462"]
[TimeControl "180+1"]
[EndTime "14:15:44 PST"]
[Termination "Matthew_Clarke won by resignation"]

1. e4 {[%clk 0:02:54.4]} 1... c5 {[%clk 0:02:59.6]} 2. Nf3 {[%clk 0:02:54.7]}
2... d6 {[%clk 0:02:58.7]} 3. Bb5+ {[%clk 0:02:55]} 3... Bd7 {[%clk 0:02:57.2]}
4. Bxd7+ {[%clk 0:02:55.1]} 4... Qxd7 {[%clk 0:02:57.3]} 5. c4 {[%clk
0:02:53.5]} 5... Nc6 {[%clk 0:02:54.7]} 6. d4 {[%clk 0:02:48.2]} 6... cxd4
{[%clk 0:02:54.1]} 7. Nxd4 {[%clk 0:02:49.1]} 7... g6 {[%clk 0:02:54.4]} 8. Nc3
{[%clk 0:02:45.6]} 8... Bg7 {[%clk 0:02:54.2]} 9. Be3 {[%clk 0:02:46.1]} 9...
Nf6 {[%clk 0:02:53.9]} 10. f3 {[%clk 0:02:45.2]} 10... Rc8 {[%clk 0:02:53.6]}
11. b3 {[%clk 0:02:33.6]} 11... O-O {[%clk 0:02:49.5]} 12. O-O {[%clk
0:02:32.7]} 12... Nxd4 {[%clk 0:02:44.5]} 13. Bxd4 {[%clk 0:02:32.1]} 13... a6
{[%clk 0:02:44.8]} 14. Qd3 {[%clk 0:02:23.6]} 14... Qc6 {[%clk 0:02:39.1]} 15.
a4 {[%clk 0:02:07.9]} 15... Rfe8 {[%clk 0:02:33.1]} 16. a5 {[%clk 0:02:04.9]}
16... Nd7 {[%clk 0:02:30.6]} 17. Be3 {[%clk 0:01:51.9]} 17... Nc5 {[%clk
0:02:20.8]} 18. Qc2 {[%clk 0:01:50.4]} 18... Ne6 {[%clk 0:01:55.9]} 19. Rfd1
{[%clk 0:01:41.5]} 19... Nc7 {[%clk 0:01:51.9]} 20. Rac1 {[%clk 0:01:36]} 20...
Ne6 {[%clk 0:01:46.6]} 21. Nd5 {[%clk 0:01:23.5]} 21... Nc5 {[%clk 0:01:44.3]}
22. b4 {[%clk 0:01:11.6]} 22... Nd7 {[%clk 0:01:39.4]} 23. Qe2 {[%clk 0:01:07]}
23... e6 {[%clk 0:01:32.7]} 24. b5 {[%clk 0:01:05.7]} 24... axb5 {[%clk
0:01:24.1]} 25. cxb5 {[%clk 0:01:05.7]} 25... exd5 {[%clk 0:01:24.4]} 26. bxc6
{[%clk 0:01:04.9]} 26... bxc6 {[%clk 0:01:24.4]} 27. Qa6 {[%clk 0:00:54.1]}
27... dxe4 {[%clk 0:01:23.4]} 28. Rxc6 {[%clk 0:00:51.1]} 28... Ra8 {[%clk
0:01:23.4]} 29. Qb7 {[%clk 0:00:45.2]} 29... Ne5 {[%clk 0:01:22.7]} 30. Rc7
{[%clk 0:00:43.6]} 30... exf3 {[%clk 0:01:21.7]} 31. Bd4 {[%clk 0:00:30.1]}
31... Rxa5 {[%clk 0:01:20.5]} 32. Bxe5 {[%clk 0:00:28]} 32... Bxe5 {[%clk
0:01:18.5]} 33. Rxf7 {[%clk 0:00:25.3]} 33... Ra2 {[%clk 0:01:07]} 34. Rxf3
{[%clk 0:00:22.6]} 34... Rb2 {[%clk 0:01:01.7]} 35. Qf7+ {[%clk 0:00:21.8]} 1-0

[Event "Late-Titled-Tuesday-Blitz-November-28-2023"]
[Site "Chess.com"]
[Date "2023.11.28"]
[Round "2"]
[White "Zampronha1971"]
[Black "maurovargas01"]
[Result "1-0"]
[WhiteElo "2372"]
[BlackElo "1842"]
[TimeControl "180+1"]
[EndTime "14:15:44 PST"]
[Termination "Zampronha1971 won on time"]

1. e4 {[%clk 0:03:00.9]} 1... d5 {[%clk 0:02:58.4]} 2. exd5 {[%clk 0:03:00]}
2... Qxd5 {[%clk 0:02:55.6]} 3. Nc3 {[%clk 0:02:59.7]} 3... Qa5 {[%clk
0:02:54.3]} 4. d4 {[%clk 0:03:00.3]} 4... c6 {[%clk 0:02:53.8]} 5. Nf3 {[%clk
0:03:00.9]} 5... Nf6 {[%clk 0:02:53.2]} 6. Bc4 {[%clk 0:03:00.5]} 6... Bg4
{[%clk 0:02:52]} 7. h3 {[%clk 0:02:59.7]} 7... Bh5 {[%clk 0:02:51.4]} 8. g4
{[%clk 0:02:59.7]} 8... Bg6 {[%clk 0:02:51.3]} 9. Ne5 {[%clk 0:02:59.9]} 9...
Nbd7 {[%clk 0:02:49.3]} 10. Qe2 {[%clk 0:02:57.5]} 10... Nxe5 {[%clk 0:02:41.2]}
11. dxe5 {[%clk 0:02:56.8]} 11... Nd5 {[%clk 0:02:39.8]} 12. Bd2 {[%clk
0:02:53.1]} 12... Nxc3 {[%clk 0:02:34.1]} 13. Bxc3 {[%clk 0:02:51.1]} 13... Qc7
{[%clk 0:02:32.9]} 14. O-O-O {[%clk 0:02:49.2]} 14... e6 {[%clk 0:02:32.4]} 15.
h4 {[%clk 0:02:46.8]} 15... h6 {[%clk 0:02:31.2]} 16. f4 {[%clk 0:02:46.7]}
16... Bc5 {[%clk 0:02:25.1]} 17. Kb1 {[%clk 0:02:45.8]} 17... a5 {[%clk
0:02:11]} 18. Bd3 {[%clk 0:02:26.2]} 18... b5 {[%clk 0:02:07.5]} 19. f5 {[%clk
0:02:25.2]} 19... exf5 {[%clk 0:02:05]} 20. gxf5 {[%clk 0:02:25]} 20... Bh7
{[%clk 0:02:03.5]} 21. f6 {[%clk 0:02:18]} 21... g6 {[%clk 0:01:39.5]} 22. e6
{[%clk 0:02:16.2]} 22... O-O-O {[%clk 0:01:34.8]} 23. exf7 {[%clk 0:02:03.3]}
23... Qxf7 {[%clk 0:01:29.3]} 24. Bxa5 {[%clk 0:01:59.3]} 24... Rhe8 {[%clk
0:01:19.6]} 25. Qf3 {[%clk 0:01:56.2]} 25... Kb7 {[%clk 0:01:07]} 26. Bxb5
{[%clk 0:01:49.2]} 26... Rxd1+ {[%clk 0:00:48.4]} 27. Rxd1 {[%clk 0:01:50.1]}
27... Qe6 {[%clk 0:00:31.2]} 28. a3 {[%clk 0:01:27.4]} 28... Bg8 {[%clk
0:00:20.5]} 29. Bxc6+ {[%clk 0:01:20.9]} 29... Qxc6 {[%clk 0:00:16.4]} 30. Rd7+
{[%clk 0:01:20.7]} 30... Ka6 {[%clk 0:00:14.1]} 31. Qxc6+ {[%clk 0:01:20.1]}
31... Kxa5 {[%clk 0:00:03.1]} 32. Qxc5+ {[%clk 0:01:19.1]} 1-0

[Event "Late-Titled-Tuesday-Blitz-November-28-2023"]
[Site "Chess.com"]
[Date "2023.11.28"]
[Round "2"]
[White "Rodalquilar"]
[Black "GlavkonVVS"]
[Result "1-0"]
[WhiteElo "2741"]
[BlackElo "2515"]
[TimeControl "180+1"]
[EndTime "14:16:05 PST"]
[Termination "Rodalquilar won by resignation"]

1. d4 {[%clk 0:03:00.9]} 1... Nf6 {[%clk 0:02:59.4]} 2. Nf3 {[%clk 0:03:01.3]}
2... c5 {[%clk 0:02:58.5]} 3. c3 {[%clk 0:03:01.5]} 3... e6 {[%clk 0:02:58.4]}
4. Bf4 {[%clk 0:03:01.2]} 4... d5 {[%clk 0:02:58.3]} 5. e3 {[%clk 0:03:01.3]}
5... Nc6 {[%clk 0:02:58.4]} 6. Nbd2 {[%clk 0:03:01.3]} 6... Bd6 {[%clk
0:02:57.5]} 7. Bg3 {[%clk 0:03:00.6]} 7... O-O {[%clk 0:02:56.8]} 8. Bd3 {[%clk
0:02:59.3]} 8... b6 {[%clk 0:02:55.3]} 9. e4 {[%clk 0:02:58.9]} 9... dxe4 {[%clk
0:02:43.4]} 10. Nxe4 {[%clk 0:02:59]} 10... Be7 {[%clk 0:02:38]} 11. dxc5 {[%clk
0:02:54.2]} 11... bxc5 {[%clk 0:02:36.2]} 12. Nxf6+ {[%clk 0:02:26.9]} 12...
Bxf6 {[%clk 0:02:35.5]} 13. Qe2 {[%clk 0:02:27.3]} 13... Bb7 {[%clk 0:02:30.5]}
14. O-O {[%clk 0:02:27.6]} 14... Ne7 {[%clk 0:02:14]} 15. Rad1 {[%clk
0:02:13.4]} 15... Qb6 {[%clk 0:02:13]} 16. Nd2 {[%clk 0:02:13.8]} 16... Rfd8
{[%clk 0:02:02.2]} 17. Nc4 {[%clk 0:02:13.9]} 17... Qc6 {[%clk 0:01:57.9]} 18.
f3 {[%clk 0:02:14.1]} 18... Ba6 {[%clk 0:01:55.1]} 19. Be4 {[%clk 0:02:06.4]}
19... Nd5 {[%clk 0:01:51.6]} 20. Bd3 {[%clk 0:02:00.6]} 20... Qa4 {[%clk
0:01:43.8]} 21. Bf2 {[%clk 0:01:45.6]} 21... Rac8 {[%clk 0:01:34.9]} 22. Qe4
{[%clk 0:01:31.7]} 22... g6 {[%clk 0:01:33.1]} 23. Rfe1 {[%clk 0:01:22.7]} 23...
Bb7 {[%clk 0:00:52.3]} 24. Nd6 {[%clk 0:01:08.1]} 24... Qxe4 {[%clk 0:00:45]}
25. Nxe4 {[%clk 0:01:09]} 25... Be7 {[%clk 0:00:43]} 26. a4 {[%clk 0:00:37.5]}
26... a5 {[%clk 0:00:37.4]} 27. Bb5 {[%clk 0:00:36.3]} 27... f5 {[%clk
0:00:33.4]} 28. Nd2 {[%clk 0:00:34.9]} 28... Kf7 {[%clk 0:00:32.7]} 29. Nc4
{[%clk 0:00:35.2]} 29... Ra8 {[%clk 0:00:27.3]} 30. Ne5+ {[%clk 0:00:34.1]}
30... Kg7 {[%clk 0:00:26.3]} 31. Nc6 {[%clk 0:00:29.1]} 31... Rd6 {[%clk
0:00:26.1]} 32. Nxe7 {[%clk 0:00:28.4]} 1-0

[Event "Late-Titled-Tuesday-Blitz-November-28-2023"]
[Site "Chess.com"]
[Date "2023.11.28"]
[Round "2"]
[White "JiiHart"]
[Black "Haykoooo0o"]
[Result "0-1"]
[WhiteElo "2120"]
[BlackElo "2418"]
[TimeControl "180+1"]
[EndTime "14:16:08 PST"]
[Termination "Haykoooo0o won on time"]

1. e4 {[%clk 0:03:00.9]} 1... c6 {[%clk 0:02:47]} 2. d4 {[%clk 0:03:00.2]} 2...
d5 {[%clk 0:02:47.9]} 3. Nd2 {[%clk 0:03:00.5]} 3... dxe4 {[%clk 0:02:47.8]} 4.
Nxe4 {[%clk 0:03:01.3]} 4... Nd7 {[%clk 0:02:48.1]} 5. Ng5 {[%clk 0:03:01]} 5...
h6 {[%clk 0:02:47.9]} 6. Ne6 {[%clk 0:03:00.4]} 6... Qb6 {[%clk 0:02:47.8]} 7.
Nxf8 {[%clk 0:02:43]} 7... Nxf8 {[%clk 0:02:48.7]} 8. Nf3 {[%clk 0:02:34]} 8...
Bf5 {[%clk 0:02:47.1]} 9. Bd3 {[%clk 0:02:26.6]} 9... Bxd3 {[%clk 0:02:46.4]}
10. Qxd3 {[%clk 0:02:27.5]} 10... Nf6 {[%clk 0:02:46.6]} 11. O-O {[%clk
0:02:26.7]} 11... Ng6 {[%clk 0:02:46.9]} 12. b3 {[%clk 0:02:10.7]} 12... O-O
{[%clk 0:02:45.3]} 13. Bb2 {[%clk 0:02:10.6]} 13... e6 {[%clk 0:02:45.5]} 14. c4
{[%clk 0:02:09.4]} 14... Rfd8 {[%clk 0:02:43]} 15. Qe3 {[%clk 0:01:32.1]} 15...
Rd7 {[%clk 0:02:36.3]} 16. h3 {[%clk 0:01:26.6]} 16... Rad8 {[%clk 0:02:33.2]}
17. Rfe1 {[%clk 0:01:15.7]} 17... Qc7 {[%clk 0:02:31.3]} 18. g3 {[%clk
0:01:02.3]} 18... b5 {[%clk 0:02:19.7]} 19. Kg2 {[%clk 0:00:58]} 19... Qb7
{[%clk 0:02:18.8]} 20. Rab1 {[%clk 0:00:52.4]} 20... a5 {[%clk 0:02:14.2]} 21.
Ba1 {[%clk 0:00:49.7]} 21... Qa8 {[%clk 0:02:10.6]} 22. d5 {[%clk 0:00:42.6]}
22... cxd5 {[%clk 0:02:04.9]} 23. Bxf6 {[%clk 0:00:42.3]} 23... gxf6 {[%clk
0:02:04]} 24. Qxh6 {[%clk 0:00:42.1]} 24... dxc4 {[%clk 0:01:57.9]} 25. bxc4
{[%clk 0:00:25.7]} 25... bxc4 {[%clk 0:01:51.7]} 26. Rb5 {[%clk 0:00:18.3]}
26... Rd3 {[%clk 0:01:43.2]} 27. Re3 {[%clk 0:00:17.3]} 27... Rxe3 {[%clk
0:01:35.9]} 28. fxe3 {[%clk 0:00:18.2]} 28... Rd2+ {[%clk 0:01:27.8]} 29. Kg1
{[%clk 0:00:18.4]} 29... Rxa2 {[%clk 0:01:15.4]} 30. e4 {[%clk 0:00:16.5]} 30...
Qd8 {[%clk 0:01:10]} 31. Qc1 {[%clk 0:00:09.1]} 31... Kg7 {[%clk 0:01:07]} 32.
Rb2 {[%clk 0:00:04.8]} 32... Rxb2 {[%clk 0:01:02.1]} 33. Qxb2 {[%clk 0:00:05.7]}
33... Qd3 {[%clk 0:01:02.1]} 34. Kf2 {[%clk 0:00:02.4]} 34... Qxe4 {[%clk
0:01:01.4]} 35. Qc3 {[%clk 0:00:01.1]} 35... Qd5 {[%clk 0:00:56.1]} 0-1

[Event "Late-Titled-Tuesday-Blitz-November-28-2023"]
[Site "Chess.com"]
[Date "2023.11.28"]
[Round "2"]
[White "WindWhistler11"]
[Black "jcibarra"]
[Result "0-1"]
[WhiteElo "2556"]
[BlackElo "2907"]
[TimeControl "180+1"]
[EndTime "14:16:09 PST"]
[Termination "jcibarra won by resignation"]

1. Nf3 {[%clk 0:03:00.9]} 1... Nf6 {[%clk 0:02:55.8]} 2. c4 {[%clk 0:03:00.7]}
2... g6 {[%clk 0:02:54.6]} 3. b3 {[%clk 0:03:00.4]} 3... Bg7 {[%clk 0:02:53.9]}
4. Bb2 {[%clk 0:03:00.7]} 4... O-O {[%clk 0:02:53.8]} 5. Na3 {[%clk 0:02:55.4]}
5... d6 {[%clk 0:02:50.7]} 6. e3 {[%clk 0:02:49.9]} 6... e5 {[%clk 0:02:50]} 7.
d3 {[%clk 0:02:42.6]} 7... Nh5 {[%clk 0:02:43.8]} 8. Qc1 {[%clk 0:02:28.3]} 8...
f5 {[%clk 0:02:39.4]} 9. Be2 {[%clk 0:02:28.1]} 9... Nc6 {[%clk 0:02:38.4]} 10.
Nc2 {[%clk 0:02:25.8]} 10... Qe8 {[%clk 0:02:20.6]} 11. Nd2 {[%clk 0:02:01.4]}
11... g5 {[%clk 0:02:18.4]} 12. Nb1 {[%clk 0:01:52.1]} 12... g4 {[%clk
0:02:13.5]} 13. Nc3 {[%clk 0:01:46.6]} 13... f4 {[%clk 0:02:05.8]} 14. Qd2
{[%clk 0:01:38]} 14... a5 {[%clk 0:01:51.8]} 15. a3 {[%clk 0:01:31.9]} 15... Be6
{[%clk 0:01:40.1]} 16. Nd5 {[%clk 0:01:23.7]} 16... Qf7 {[%clk 0:01:36.7]} 17.
O-O-O {[%clk 0:01:07.2]} 17... Bxd5 {[%clk 0:01:34.3]} 18. cxd5 {[%clk
0:01:07.2]} 18... Qxd5 {[%clk 0:01:35.2]} 19. Bxg4 {[%clk 0:01:06.4]} 19... Nf6
{[%clk 0:01:34.8]} 20. Bf3 {[%clk 0:01:05]} 20... Qxb3 {[%clk 0:01:34.6]} 21.
exf4 {[%clk 0:00:38.3]} 21... exf4 {[%clk 0:01:31.1]} 22. Qxf4 {[%clk
0:00:38.2]} 22... Ne4 {[%clk 0:00:26.3]} 23. Qxe4 {[%clk 0:00:09.9]} 23... Bxb2+
{[%clk 0:00:25.6]} 24. Kd2 {[%clk 0:00:07.8]} 24... Bc3+ {[%clk 0:00:26.2]} 25.
Ke3 {[%clk 0:00:05.9]} 25... Rae8 {[%clk 0:00:26]} 0-1

[Event "Late-Titled-Tuesday-Blitz-November-28-2023"]
[Site "Chess.com"]
[Date "2023.11.28"]
[Round "2"]
[White "LUISMIGUELOV"]
[Black "wanyaland"]
[Result "0-1"]
[WhiteElo "2203"]
[BlackElo "2448"]
[TimeControl "180+1"]
[EndTime "14:16:13 PST"]
[Termination "wanyaland won on time"]

1. e4 {[%clk 0:03:00.9]} 1... c5 {[%clk 0:02:56.6]} 2. d4 {[%clk 0:02:58.3]}
2... cxd4 {[%clk 0:02:56.4]} 3. c3 {[%clk 0:02:58.9]} 3... dxc3 {[%clk
0:02:56.5]} 4. Nxc3 {[%clk 0:02:58.9]} 4... e6 {[%clk 0:02:57]} 5. Nf3 {[%clk
0:02:54.4]} 5... a6 {[%clk 0:02:57.1]} 6. Bc4 {[%clk 0:02:53.6]} 6... Ne7 {[%clk
0:02:56.7]} 7. Bg5 {[%clk 0:02:53.2]} 7... h6 {[%clk 0:02:55.9]} 8. Be3 {[%clk
0:02:50.9]} 8... Nbc6 {[%clk 0:02:53.1]} 9. Qe2 {[%clk 0:02:48.4]} 9... Ng6
{[%clk 0:02:52.3]} 10. h4 {[%clk 0:02:46.6]} 10... Be7 {[%clk 0:02:49.3]} 11. h5
{[%clk 0:02:46.4]} 11... Nge5 {[%clk 0:02:49]} 12. Bb3 {[%clk 0:02:36.6]} 12...
b5 {[%clk 0:02:43]} 13. O-O {[%clk 0:02:27.9]} 13... Bb7 {[%clk 0:02:40.3]} 14.
Rfd1 {[%clk 0:02:26.3]} 14... O-O {[%clk 0:02:39.1]} 15. Rac1 {[%clk 0:02:24.9]}
15... Rc8 {[%clk 0:02:29.7]} 16. a3 {[%clk 0:02:08.7]} 16... d6 {[%clk
0:02:24.1]} 17. Nxe5 {[%clk 0:01:57.5]} 17... Nxe5 {[%clk 0:02:22.5]} 18. f4
{[%clk 0:01:57.8]} 18... Nc4 {[%clk 0:02:21.4]} 19. Bd4 {[%clk 0:01:51]} 19...
Qa5 {[%clk 0:02:11.6]} 20. Qg4 {[%clk 0:01:48.9]} 20... e5 {[%clk 0:02:07.4]}
21. Bxc4 {[%clk 0:01:42.5]} 21... exd4 {[%clk 0:02:06.4]} 22. Bxf7+ {[%clk
0:01:34.2]} 22... Rxf7 {[%clk 0:02:02.3]} 23. Nd5 {[%clk 0:01:32.5]} 23... Rxc1
{[%clk 0:02:00]} 24. Rxc1 {[%clk 0:01:22.8]} 24... Bxd5 {[%clk 0:01:58.6]} 25.
exd5 {[%clk 0:01:19.6]} 25... Qd2 {[%clk 0:01:57.5]} 26. Rc8+ {[%clk 0:01:16]}
26... Bf8 {[%clk 0:01:55.7]} 27. f5 {[%clk 0:00:55.1]} 27... Qe3+ {[%clk
0:01:52.3]} 28. Kh1 {[%clk 0:00:53]} 28... Qg5 {[%clk 0:01:50.6]} 29. Qxd4
{[%clk 0:00:46.6]} 29... Rxf5 {[%clk 0:01:48.1]} 30. Qe4 {[%clk 0:00:35.7]}
30... Rf1+ {[%clk 0:01:42.3]} 31. Kh2 {[%clk 0:00:35.7]} 31... Qxh5+ {[%clk
0:01:39.4]} 32. Kg3 {[%clk 0:00:36]} 32... Qe5+ {[%clk 0:01:38.8]} 33. Qxe5
{[%clk 0:00:35.1]} 33... dxe5 {[%clk 0:01:39]} 34. d6 {[%clk 0:00:34.9]} 34...
Rd1 {[%clk 0:01:38]} 35. d7 {[%clk 0:00:33.2]} 35... Rxd7 {[%clk 0:01:36.8]} 36.
Kf3 {[%clk 0:00:33.6]} 36... Rd4 {[%clk 0:01:35.6]} 37. g4 {[%clk 0:00:32.1]}
37... a5 {[%clk 0:01:34.4]} 38. b3 {[%clk 0:00:29]} 38... a4 {[%clk 0:01:33.2]}
39. bxa4 {[%clk 0:00:28.2]} 39... bxa4 {[%clk 0:01:33]} 40. g5 {[%clk
0:00:28.7]} 40... hxg5 {[%clk 0:01:32.2]} 41. Ra8 {[%clk 0:00:26.8]} 41... g4+
{[%clk 0:01:31.5]} 42. Kg3 {[%clk 0:00:26.4]} 42... Kf7 {[%clk 0:01:31.7]} 43.
Kh4 {[%clk 0:00:26.2]} 43... Be7+ {[%clk 0:01:30.7]} 44. Kh5 {[%clk 0:00:25.2]}
44... g3 {[%clk 0:01:30]} 45. Rf8+ {[%clk 0:00:19.1]} 45... Kxf8 {[%clk
0:01:25]} 46. Kg6 {[%clk 0:00:13]} 46... g2 {[%clk 0:01:24]} 0-1

[Event "Late-Titled-Tuesday-Blitz-November-28-2023"]
[Site "Chess.com"]
[Date "2023.11.28"]
[Round "2"]
[White "PositionalPanther"]
[Black "yoelpolanco"]
[Result "0-1"]
[WhiteElo "2464"]
[BlackElo "2271"]
[TimeControl "180+1"]
[EndTime "14:16:14 PST"]
[Termination "yoelpolanco won by resignation"]

1. Nf3 {[%clk 0:02:56.3]} 1... d5 {[%clk 0:02:53.2]} 2. g3 {[%clk 0:02:56.4]}
2... g6 {[%clk 0:02:53.3]} 3. c4 {[%clk 0:02:55.9]} 3... dxc4 {[%clk 0:02:53]}
4. Na3 {[%clk 0:02:55.4]} 4... Bg7 {[%clk 0:02:50.9]} 5. Nxc4 {[%clk 0:02:55.6]}
5... Nf6 {[%clk 0:02:51.5]} 6. Bg2 {[%clk 0:02:55.1]} 6... O-O {[%clk
0:02:52.4]} 7. O-O {[%clk 0:02:55]} 7... c6 {[%clk 0:02:51.6]} 8. b3 {[%clk
0:02:55]} 8... Na6 {[%clk 0:02:36.6]} 9. Bb2 {[%clk 0:02:54.6]} 9... c5 {[%clk
0:02:36.4]} 10. Nfe5 {[%clk 0:02:51.3]} 10... Nd7 {[%clk 0:02:31.6]} 11. Nxd7
{[%clk 0:02:39.6]} 11... Qxd7 {[%clk 0:02:32.5]} 12. Bxg7 {[%clk 0:02:38.2]}
12... Kxg7 {[%clk 0:02:33.4]} 13. Qc2 {[%clk 0:02:37]} 13... Rb8 {[%clk
0:02:27.7]} 14. Qc3+ {[%clk 0:02:34.9]} 14... f6 {[%clk 0:02:27.8]} 15. Rfd1
{[%clk 0:02:27.7]} 15... Rd8 {[%clk 0:02:27.3]} 16. Rac1 {[%clk 0:02:20.5]}
16... b6 {[%clk 0:02:26.9]} 17. e3 {[%clk 0:02:15.7]} 17... Bb7 {[%clk 0:02:26]}
18. Bxb7 {[%clk 0:02:14.5]} 18... Qxb7 {[%clk 0:02:25.7]} 19. d4 {[%clk
0:02:14.3]} 19... Qf3 {[%clk 0:02:17.5]} 20. Nd2 {[%clk 0:02:08.9]} 20... Qb7
{[%clk 0:02:16.9]} 21. dxc5 {[%clk 0:02:02.5]} 21... Nxc5 {[%clk 0:02:16.2]} 22.
Nf1 {[%clk 0:01:46.8]} 22... Rbc8 {[%clk 0:02:10.8]} 23. Rxd8 {[%clk 0:01:45.6]}
23... Rxd8 {[%clk 0:02:11.7]} 24. Qc2 {[%clk 0:01:42.4]} 24... Rd7 {[%clk
0:02:04.7]} 25. Rd1 {[%clk 0:01:41.6]} 25... Rxd1 {[%clk 0:01:59.5]} 26. Qxd1
{[%clk 0:01:42.5]} 26... Qd7 {[%clk 0:01:59.8]} 27. Qxd7 {[%clk 0:01:38.8]}
27... Nxd7 {[%clk 0:02:00.7]} 28. Nd2 {[%clk 0:01:38.8]} 28... e6 {[%clk
0:01:58.9]} 29. Nf3 {[%clk 0:01:38.8]} 29... e5 {[%clk 0:01:58.5]} 30. Nd2
{[%clk 0:01:36.9]} 30... Kf7 {[%clk 0:01:57.8]} 31. Kf1 {[%clk 0:01:33.9]} 31...
Ke6 {[%clk 0:01:58]} 32. Ke2 {[%clk 0:01:34.4]} 32... b5 {[%clk 0:01:55.6]} 33.
b4 {[%clk 0:01:33.2]} 33... Nb6 {[%clk 0:01:55.4]} 34. Kd3 {[%clk 0:01:30.1]}
34... f5 {[%clk 0:01:55]} 35. Nb3 {[%clk 0:01:28.7]} 35... Kd5 {[%clk
0:01:52.3]} 36. f3 {[%clk 0:01:12.1]} 36... e4+ {[%clk 0:01:52.2]} 37. fxe4+
{[%clk 0:01:10.2]} 37... fxe4+ {[%clk 0:01:53.1]} 38. Ke2 {[%clk 0:01:05.7]}
38... Na4 {[%clk 0:01:49.1]} 39. Kf2 {[%clk 0:01:04]} 39... Nc3 {[%clk
0:01:46.2]} 40. a3 {[%clk 0:00:58.3]} 40... Nb1 {[%clk 0:01:45.6]} 41. Nd4
{[%clk 0:00:41.6]} 41... a6 {[%clk 0:01:44.9]} 42. Nc2 {[%clk 0:00:40.6]} 42...
Kc4 {[%clk 0:01:43.2]} 43. Ke2 {[%clk 0:00:40.6]} 43... Kb3 {[%clk 0:01:41.4]}
44. h4 {[%clk 0:00:32.4]} 44... Nxa3 {[%clk 0:01:40.7]} 45. Nd4+ {[%clk
0:00:32.8]} 45... Kxb4 {[%clk 0:01:39.9]} 46. Ne6 {[%clk 0:00:33.7]} 46... Kc3
{[%clk 0:01:32.3]} 47. Ng5 {[%clk 0:00:32.8]} 47... b4 {[%clk 0:01:32.5]} 48.
Nxe4+ {[%clk 0:00:33]} 48... Kc2 {[%clk 0:01:32.5]} 49. Nd2 {[%clk 0:00:26.4]}
49... b3 {[%clk 0:01:32.5]} 50. e4 {[%clk 0:00:26.9]} 50... b2 {[%clk
0:01:27.2]} 51. e5 {[%clk 0:00:27]} 51... Nb5 {[%clk 0:01:21.7]} 52. Ke3 {[%clk
0:00:17.9]} 52... a5 {[%clk 0:01:22]} 53. e6 {[%clk 0:00:17.8]} 53... a4 {[%clk
0:01:21.1]} 54. e7 {[%clk 0:00:16.6]} 54... Nc7 {[%clk 0:01:21.2]} 55. Kf3
{[%clk 0:00:10.6]} 55... Kxd2 {[%clk 0:01:20.5]} 0-1

[Event "Late-Titled-Tuesday-Blitz-November-28-2023"]
[Site "Chess.com"]
[Date "2023.11.28"]
[Round "2"]
[White "Tomytoteph"]
[Black "Jospem"]
[Result "0-1"]
[WhiteElo "2624"]
[BlackElo "3063"]
[TimeControl "180+1"]
[EndTime "14:16:15 PST"]
[Termination "Jospem won by resignation"]

1. e4 {[%clk 0:02:58.7]} 1... c5 {[%clk 0:03:00.2]} 2. Nf3 {[%clk 0:02:58.5]}
2... d6 {[%clk 0:03:00.8]} 3. d4 {[%clk 0:02:58.4]} 3... cxd4 {[%clk 0:03:01.7]}
4. Nxd4 {[%clk 0:02:59.1]} 4... a6 {[%clk 0:03:02.6]} 5. Nc3 {[%clk 0:02:57.5]}
5... e6 {[%clk 0:03:03.1]} 6. Be3 {[%clk 0:02:44.9]} 6... Nf6 {[%clk 0:03:02.3]}
7. Be2 {[%clk 0:02:44.6]} 7... b5 {[%clk 0:03:01.7]} 8. Bf3 {[%clk 0:02:43.1]}
8... e5 {[%clk 0:03:01.7]} 9. Nb3 {[%clk 0:02:28.7]} 9... Be7 {[%clk 0:02:56.2]}
10. O-O {[%clk 0:02:27.6]} 10... O-O {[%clk 0:02:55.6]} 11. a4 {[%clk
0:02:27.4]} 11... b4 {[%clk 0:02:52.8]} 12. Nd5 {[%clk 0:02:27.1]} 12... Nc6
{[%clk 0:02:15]} 13. Rc1 {[%clk 0:02:18.2]} 13... Nxd5 {[%clk 0:02:10]} 14. exd5
{[%clk 0:02:15.9]} 14... Na5 {[%clk 0:02:09.9]} 15. Nxa5 {[%clk 0:02:15]} 15...
Qxa5 {[%clk 0:02:10.8]} 16. b3 {[%clk 0:02:15.3]} 16... Bd7 {[%clk 0:02:02.2]}
17. Bd2 {[%clk 0:02:09]} 17... Qb6 {[%clk 0:01:54.8]} 18. c4 {[%clk 0:01:59.1]}
18... bxc3 {[%clk 0:01:55.7]} 19. Rxc3 {[%clk 0:01:58.5]} 19... Rfc8 {[%clk
0:01:54.3]} 20. Rc4 {[%clk 0:01:39.5]} 20... Rxc4 {[%clk 0:01:49.2]} 21. bxc4
{[%clk 0:01:39.6]} 21... Rc8 {[%clk 0:01:49.9]} 22. Qc2 {[%clk 0:01:36.6]} 22...
h6 {[%clk 0:01:24.6]} 23. Be2 {[%clk 0:01:31.7]} 23... Bg5 {[%clk 0:01:20]} 24.
Bxg5 {[%clk 0:01:29.2]} 24... hxg5 {[%clk 0:01:20.9]} 25. Rb1 {[%clk 0:01:28.7]}
25... Qa5 {[%clk 0:01:15]} 26. Ra1 {[%clk 0:01:22.6]} 26... g6 {[%clk
0:01:07.5]} 27. Qc1 {[%clk 0:01:17.7]} 27... g4 {[%clk 0:01:07.5]} 28. Qa3
{[%clk 0:01:09.6]} 28... Rc5 {[%clk 0:01:06.5]} 29. Qb3 {[%clk 0:01:08.9]} 29...
Qc7 {[%clk 0:01:05]} 30. Rb1 {[%clk 0:01:06.6]} 30... Kg7 {[%clk 0:01:03.1]} 31.
Qb6 {[%clk 0:01:00.7]} 31... Bxa4 {[%clk 0:00:47.9]} 32. Qxc7 {[%clk 0:00:57.6]}
32... Rxc7 {[%clk 0:00:48.8]} 33. Rb6 {[%clk 0:00:58.1]} 33... a5 {[%clk
0:00:49.1]} 34. Rxd6 {[%clk 0:00:57.3]} 34... Bb3 {[%clk 0:00:49.5]} 35. Bxg4
{[%clk 0:00:47.2]} 35... Rxc4 {[%clk 0:00:48.2]} 36. h3 {[%clk 0:00:47.5]} 36...
Rd4 {[%clk 0:00:45]} 37. Bf3 {[%clk 0:00:46.5]} 37... e4 {[%clk 0:00:44.7]} 38.
Be2 {[%clk 0:00:46.8]} 38... Rd2 {[%clk 0:00:44.8]} 39. Bb5 {[%clk 0:00:45.5]}
39... Rxd5 {[%clk 0:00:44.3]} 40. Rb6 {[%clk 0:00:44.9]} 40... a4 {[%clk
0:00:42.7]} 41. Rb7 {[%clk 0:00:42.2]} 41... a3 {[%clk 0:00:37.3]} 42. Be8
{[%clk 0:00:38]} 42... Rd1+ {[%clk 0:00:32.6]} 43. Kh2 {[%clk 0:00:37.8]} 43...
a2 {[%clk 0:00:33.5]} 0-1